fUSD/lending_fUSD_20240916
["ID","MTS","AMOUNT","RATE_DAILY","PERIOD"]
[338334082,1726507832250,-175.99,0.00013753,2]
[338334083,1726507832261,-500.0,0.0001382,2]
[338334084,1726507832272,-255.0,0.0001382,2]
[338334085,1726507832281,-163.16,0.00013857,2]
[338334086,1726507832290,-225.0,0.00013893,2]
[338334087,1726507832300,-153.22,0.00014192,2]
[338334088,1726507832309,-355.0,0.0001437,2]
[338334089,1726507832318,-455.0,0.00014421,2]
[338334090,1726507832327,-1069.7908599,0.00014524,2]
[338334091,1726507832337,-1051.78919742,0.00014524,2]
[338334092,1726507832346,-3254.7639,0.00014595,2]
[338334093,1726507832355,-500.0,0.00014642,2]
[338334094,1726507832364,-200.0,0.00014642,2]
[338334095,1726507832374,-558.89,0.00014675,2]
[338334096,1726507832383,-155.241,0.00014675,2]
[338334097,1726507832392,-150.0,0.00014675,2]
[338334098,1726507832401,-175.74834262,0.00014687,2]
[338334100,1726507832411,-172.76901356,0.00014698,2]
[338334101,1726507832420,-688.66,0.000147,2]
[338334102,1726507832429,-1374.26885717,0.00014717,2]
[338334103,1726507832438,-1374.26885709,0.00014737,2]
[338334104,1726507832448,-175.74834258,0.0001474,2]
[338334105,1726507832457,-1374.26885709,0.00014758,2]
[338334106,1726507832467,-152.27,0.0001477,2]
[338334107,1726507832476,-152.27,0.0001477,2]
[338334108,1726507832485,-216.74872697,0.0001477,2]
[338334109,1726507832494,-1374.26885709,0.00014778,2]
[338334110,1726507832504,-169.86974514,0.00014779,2]
[338334111,1726507832513,-157552.55937634,0.0001478,2]
[338334112,1726507832527,-848.95032748,0.0001478,2]
[338334113,1726507832538,-1926.51356357,0.0001478,2]
[338334114,1726507832549,-3700.0,0.0001478,2]
[338334115,1726507832561,-300.0,0.0001478,2]
[338334116,1726507832572,-1451.24090158,0.0001478,2]
[338334127,1726507837979,-1458.4,0.0001478,2]
[338334128,1726507837992,-683.83831127,0.0001478,2]
[338334129,1726507838046,-1500.0,0.0001478,2]
[338334130,1726507838057,-1857.13394402,0.0001478,2]
[338334131,1726507838212,-255.53745705,0.0001478,2]
[338334310,1726507839987,-28413.12954961,0.0001478,2]
[338334589,1726507842766,-720.70825157,0.0001478,2]
[338334617,1726507842936,-289.44774,0.0001478,2]
[338334619,1726507842949,-1154.0,0.0001478,2]
[338334886,1726507845803,-527403.52040819,0.0001478,2]
[338334888,1726507845816,-15618.4412,0.0001478,2]
[338334900,1726507845920,-253.7440002,0.0001478,2]
[338334907,1726507845979,-577.17,0.0001478,2]
[338335193,1726507864083,151.1,0.00010959,2]
[338335195,1726507978401,14765.4297,0.00012942,2]
[338335196,1726508187940,349.2404,0.00012942,2]
[338335197,1726508189676,226.46,0.00011884,2]
[338335199,1726508722504,224.48,0.00011857,2]
[338335234,1726508978898,226.93,0.00010959,2]
[338335235,1726508981985,308.324634,0.00013,2]
[338335242,1726509031934,-162.71,0.00013032,2]
[338335243,1726509031943,-699.36,0.00013042,2]
[338335244,1726509031954,-214.28,0.00013146,2]
[338335245,1726509031963,-1500.0,0.0001315,2]
[338335246,1726509031972,-162.71,0.00013308,2]
[338335247,1726509031980,-124.73194281,0.00013317,2]
[338335248,1726509032072,-175.26805719,0.00013317,2]
[338335249,1726509032081,-263.3121462,0.00013318,2]
[338335250,1726509032092,-363.81696373,0.00013318,2]
[338335264,1726509038133,-785.78700674,0.00013318,2]
[338335265,1726509038144,-5162.99999999,0.00013318,2]
[338335284,1726509038502,-15282.55388334,0.00013318,2]
[338335286,1726509038512,-163.16,0.00013345,2]
[338335288,1726509038521,-653.43,0.00013384,2]
[338335290,1726509038531,-150.01,0.00013699,2]
[338335291,1726509038539,-154.81,0.00013735,2]
[338335293,1726509038548,-154.81,0.00013744,2]
[338335295,1726509038557,-154.81,0.00013753,2]
[338335297,1726509038567,-162.71,0.00013759,2]
[338335299,1726509038576,-154.81,0.00013761,2]
[338335301,1726509038586,-250.0,0.00013764,2]
[338335303,1726509038595,-500.0,0.00013769,2]
[338335305,1726509038604,-154.81,0.0001377,2]
[338335307,1726509038613,-154.81,0.00013778,2]
[338335309,1726509038623,-970.49,0.00013786,2]
[338335311,1726509038632,-154.81,0.00013787,2]
[338335313,1726509038641,-154.81,0.00013795,2]
[338335314,1726509038650,-300.64,0.00013804,2]
[338335316,1726509038659,-154.81,0.00013804,2]
[338335318,1726509038669,-150.0,0.00013808,2]
[338335320,1726509038678,-233.89,0.00013833,2]
[338335322,1726509038687,-250.0,0.00013848,2]
[338335324,1726509038697,-224.48,0.00014121,2]
[338335326,1726509038708,-210.606213,0.00014521,2]
[338335328,1726509038717,-420.0,0.00014599,2]
[338335329,1726509038727,-3000.0,0.0001463,2]
[338335331,1726509038736,-699.36,0.00014673,2]
[338335333,1726509038747,-500.0,0.00014682,2]
[338335335,1726509038756,-200.0,0.00014682,2]
[338335337,1726509038766,-150.0,0.00014682,2]
[338335339,1726509038776,-619.8,0.000147,2]
[338335341,1726509038786,-447.112,0.000147,2]
[338335343,1726509038795,-155.242,0.000147,2]
[338335345,1726509038804,-175.74834258,0.00014719,2]
[338335347,1726509038814,-291.3744,0.00014746,2]
[338335349,1726509038823,-24148.094671,0.00014777,2]
[338335351,1726509038833,-8844.4337709,0.00014777,2]
[338335353,1726509038843,-154260.10631785,0.0001478,2]
[338335355,1726509038852,-1254.001,0.0001478,2]
[338335357,1726509038861,-624.0,0.0001478,2]
[338335359,1726509038871,-1548.0,0.0001478,2]
[338335361,1726509038880,-558.0,0.0001478,2]
[338335362,1726509038890,-340.6,0.0001478,2]
[338335364,1726509038900,-810.0,0.0001478,2]
[338335366,1726509038909,-1902.0,0.0001478,2]
[338335368,1726509038919,-662.492,0.0001478,2]
[338335370,1726509038928,-3345.0,0.0001478,2]
[338335372,1726509038937,-253.396,0.0001478,2]
[338335374,1726509038947,-1929.0,0.0001478,2]
[338335376,1726509038957,-806.0,0.0001478,2]
[338335378,1726509038966,-150.0,0.0001478,2]
[338335380,1726509038975,-1144.0,0.0001478,2]
[338335382,1726509038983,-150.0,0.0001478,2]
[338335384,1726509038993,-150.309,0.0001478,2]
[338335385,1726509039002,-150.0,0.0001478,2]
[338335387,1726509039011,-150.0,0.0001478,2]
[338335389,1726509039020,-1406.297,0.0001478,2]
[338335391,1726509039029,-5217.996,0.0001478,2]
[338335393,1726509039038,-455.532,0.0001478,2]
[338335395,1726509039047,-17600.0,0.00014787,2]
[338335397,1726509039056,-175.74834258,0.0001481,2]
[338335398,1726509039065,-58540.6077213,0.00014816,2]
[338335400,1726509039074,-5172.74662935,0.00014819,2]
[338335402,1726509039083,-11773.87799834,0.0001485,2]
[338335404,1726509039092,-500.0,0.00014889,2]
[338335406,1726509039101,-962.18,0.00014889,2]
[338335408,1726509039110,-500.0,0.00014889,2]
[338335410,1726509039119,-2898.84702253,0.0001489,3]
[338335411,1726509039128,-183.4376398,0.00014899,2]
[338335412,1726509039138,-175.18324582,0.00014899,2]
[338335413,1726509039148,-200.0,0.000149,2]
[338335414,1726509039159,-2299.67634548,0.000149,2]
[338335415,1726509039169,-500.0,0.000149,2]
[338335416,1726509039178,-500.0,0.000149,2]
[338335417,1726509039187,-480.32942035,0.000149,2]
[338335418,1726509039198,-150.59,0.000149,2]
[338335419,1726509039207,-154.59,0.000149,31]
[338335420,1726509039217,-154.59,0.000149,31]
[338335421,1726509039226,-154.59,0.000149,31]
[338335422,1726509039236,-154.59,0.000149,31]
[338335423,1726509039246,-154.59,0.000149,31]
[338335424,1726509039255,-154.59,0.000149,31]
[338335425,1726509039265,-154.59,0.000149,31]
[338335426,1726509039274,-154.59,0.000149,31]
[338335427,1726509039283,-999.7291844,0.000149,2]
[338335428,1726509039292,-175.74834258,0.000149,2]
[338335429,1726509039301,-340.72615337,0.000149,2]
[338335430,1726509039310,-4356.80644661,0.000149,2]
[338335431,1726509039320,-2898.84702253,0.00014963,3]
[338335432,1726509039329,-500.0,0.00014969,2]
[338335433,1726509039338,-500.0,0.00014969,2]
[338335435,1726509039347,-342.20702753,0.00014969,2]
[338335436,1726509039356,-8696.54106759,0.0001497,3]
[338335438,1726509039365,-46381.5523605,0.0001497,3]
[338335440,1726509039375,-632.50572527,0.00014973,2]
[338335441,1726509039384,-162.41102684,0.00014973,2]
[338335443,1726509039393,-500.0,0.00014973,2]
[338335445,1726509039402,-20291.9291577,0.00014979,3]
[338335447,1726509039411,-37685.0112929,0.0001498,3]
[338335449,1726509039420,-12917.89670912,0.0001498,2]
[338335451,1726509039430,-152.43,0.0001498,2]
[338335453,1726509039439,-152.43,0.0001498,2]
[338335455,1726509039449,-500.0,0.00014989,2]
[338335457,1726509039458,-500.0,0.00014989,2]
[338335479,1726509039653,-152.43,0.0001499,2]
[338335481,1726509039664,-152.43,0.0001499,2]
[338335483,1726509039673,-151.0,0.0001499,2]
[338335485,1726509039683,-151.0,0.0001499,2]
[338335487,1726509039692,-151.0,0.0001499,2]
[338335489,1726509039702,-151.0,0.0001499,2]
[338335491,1726509039712,-151.0,0.0001499,2]
[338335493,1726509039721,-151.0,0.0001499,2]
[338335495,1726509039731,-151.0,0.0001499,2]
[338335497,1726509039740,-278.379902,0.0001499,2]
[338335499,1726509039750,-151.0,0.0001499,2]
[338335500,1726509039759,-151.0,0.0001499,2]
[338335502,1726509039769,-178.609906,0.0001499,2]
[338335505,1726509039778,-178.609906,0.0001499,2]
[338335506,1726509039787,-305.487723,0.0001499,2]
[338335508,1726509039796,-305.487723,0.0001499,2]
[338335510,1726509039805,-151.0,0.0001499,2]
[338335512,1726509039814,-151.0,0.0001499,2]
[338335514,1726509039823,-151.0,0.0001499,2]
[338335516,1726509039832,-151.0,0.0001499,2]
[338335518,1726509039841,-151.0,0.0001499,2]
[338335520,1726509039851,-151.0,0.0001499,2]
[338335522,1726509039860,-151.0,0.0001499,2]
[338335524,1726509039869,-386.978418,0.0001499,2]
[338335526,1726509039878,-151.0,0.0001499,2]
[338335528,1726509039887,-151.0,0.0001499,2]
[338335530,1726509039896,-23285.9769013,0.0001499,2]
[338335532,1726509039906,-22423.8591316,0.0001499,2]
[338335534,1726509039915,-21561.741362,0.0001499,2]
[338335536,1726509039924,-20699.6235923,0.0001499,2]
[338335537,1726509039933,-19837.5058226,0.0001499,2]
[338335539,1726509039942,-151.0,0.0001499,2]
[338335541,1726509039951,-151.0,0.0001499,2]
[338335543,1726509039961,-56450.6333837,0.0001499,2]
[338335545,1726509039970,-54360.6590461,0.0001499,2]
[338335547,1726509039979,-52270.6847085,0.0001499,2]
[338335549,1726509039988,-50180.7103709,0.0001499,2]
[338335551,1726509039997,-48090.7360333,0.0001499,2]
[338335553,1726509040006,-151.0,0.0001499,2]
[338335555,1726509040015,-8528.6762082,0.0001499,2]
[338335557,1726509040024,-8212.9186455,0.0001499,2]
[338335559,1726509040033,-7897.1610829,0.0001499,2]
[338335561,1726509040042,-7581.4035202,0.0001499,2]
[338335563,1726509040051,-7265.6459575,0.0001499,2]
[338335565,1726509040060,-151.0,0.0001499,2]
[338335566,1726509040069,-152.43,0.0001499,2]
[338335568,1726509040078,-152.43,0.0001499,2]
[338335570,1726509040087,-152.43,0.0001499,2]
[338335572,1726509040096,-152.43,0.0001499,2]
[338335574,1726509040105,-152.43,0.0001499,2]
[338335576,1726509040114,-152.43,0.0001499,2]
[338335578,1726509040123,-152.43,0.0001499,2]
[338335580,1726509040132,-152.43,0.0001499,2]
[338335582,1726509040141,-152.43,0.0001499,2]
[338335584,1726509040153,-152.43,0.0001499,2]
[338335586,1726509040163,-152.43,0.0001499,2]
[338335587,1726509040172,-152.43,0.0001499,2]
[338335589,1726509040181,-152.43,0.0001499,2]
[338335591,1726509040191,-152.43,0.0001499,2]
[338335593,1726509040200,-152.43,0.0001499,2]
[338335595,1726509040210,-152.43,0.0001499,2]
[338335597,1726509040226,-152.43,0.0001499,2]
[338335599,1726509040235,-152.43,0.0001499,2]
[338335601,1726509040245,-152.43,0.0001499,2]
[338335603,1726509040254,-152.43,0.0001499,2]
[338335605,1726509040263,-152.43,0.0001499,2]
[338335607,1726509040272,-152.43,0.0001499,2]
[338335609,1726509040281,-152.43,0.0001499,2]
[338335611,1726509040291,-152.43,0.0001499,2]
[338335613,1726509040300,-152.43,0.0001499,2]
[338335615,1726509040309,-152.43,0.0001499,2]
[338335617,1726509040319,-228.153247,0.0001499,2]
[338335619,1726509040328,-518.0,0.00014999,2]
[338335621,1726509040337,-12530.1758659,0.00014999,2]
[338335623,1726509040347,-4878.29528292,0.00014999,2]
[338335625,1726509040355,-1454.78980838,0.00014999,5]
[338335627,1726509040365,-8785.73451923,0.00014999,2]
[338335629,1726509040374,-634.1216,0.00014999,2]
[338335630,1726509040383,-386.90560711,0.00014999,3]
[338335632,1726509040393,-16285.65395593,0.00014999,3]
[338335634,1726509040404,-1110.28091693,0.00014999,5]
[338335636,1726509040413,-569.2942,0.00014999,2]
[338335638,1726509040423,-7353.23723872,0.00014999,2]
[338335640,1726509040433,-426.49541603,0.00014999,5]
[338335642,1726509040442,-151.0,0.00014999,2]
[338335644,1726509040452,-151.0,0.00014999,2]
[338335646,1726509040464,-151.0,0.00014999,2]
[338335648,1726509040473,-151.0,0.00014999,2]
[338335650,1726509040482,-151.0,0.00014999,2]
[338335652,1726509040492,-151.0,0.00014999,2]
[338335654,1726509040501,-416915.51216348,0.00015,2]
[338335656,1726509040510,-1455658.3553105,0.00015,2]
[338335658,1726509040523,-6936.81125823,0.00015,2]
[338335666,1726509040581,-300.0,0.00015,2]
[338335669,1726509040595,-1093.74618571,0.00015,2]
[338335671,1726509040606,-517.461765,0.00015,2]
[338335673,1726509040617,-374.45956765,0.00015,2]
[338335675,1726509040628,-262.58369429,0.00015,2]
[338335833,1726509043087,-252.866,0.0001478,2]
[338335834,1726509043096,-228.153247,0.0001499,2]
[338335835,1726509043105,-249.05215533,0.00015,2]
[338335836,1726509043116,-652.62529538,0.00015,2]
[338335837,1726509043127,-548.79774281,0.00015,2]
[338335838,1726509043137,-20464.29,0.00015,2]
[338335839,1726509043150,-58041.0,0.00015,2]
[338335840,1726509043162,-1367.57417739,0.00015,2]
[338335841,1726509043173,-4246.81921635,0.00015,2]
[338335842,1726509043184,-942.316296,0.00015,2]
[338335843,1726509043196,-302.08442687,0.00015,2]
[338335844,1726509043639,-18386.04645497,0.00015,2]
[338335845,1726509043650,-15236.64405893,0.00015,2]
[338335846,1726509043666,-562.6023957,0.00015,2]
[338335969,1726509046031,-812.74759037,0.00015,2]
[338335970,1726509046042,-14599.27129953,0.00015,2]
[338335971,1726509046114,-2610.19070253,0.00015,2]
[338335972,1726509046124,-581.85759867,0.00015,2]
[338335973,1726509046135,-635.39287192,0.00015,2]
[338335980,1726509046188,-3145.66036694,0.00015,2]
[338335982,1726509046200,-3929.113636,0.00015,2]
[338335984,1726509046211,-743.3523116,0.00015,2]
[338335986,1726509046226,-588.94,0.00015,2]
[338335993,1726509046279,-1996.88135758,0.00015,2]
[338335995,1726509046291,-7811.78430333,0.00015,2]
[338335998,1726509046304,-943.31862009,0.00015,2]
[338336000,1726509046318,-6263.43505737,0.00015,2]
[338336005,1726509046354,-11450.0,0.00015,2]
[338336007,1726509046367,-1874.06416438,0.00015,2]
[338336009,1726509046379,-734.01641473,0.00015,2]
[338336067,1726509208287,500.0,0.000258,120]
[338336068,1726509213469,216.586877,0.000258,120]
[338336069,1726509218018,500.0,0.000258,120]
[338336070,1726509234364,200.0,0.000258,120]
[338336071,1726509240408,222.69,0.00011877,2]
[338336072,1726509311485,1050.0,0.00011,2]
[338336084,1726509751461,211.55,0.00011691,2]
[338336113,1726509902224,500.0,0.00026,60]
[338336132,1726509916469,1000.0,0.00026,60]
[338336133,1726509924691,500.0,0.00026,60]
[338336134,1726509933248,500.0,0.00026,60]
[338336135,1726509946512,1000.0,0.00026,60]
[338336136,1726509958027,1000.0,0.00026,60]
[338336137,1726509983105,1604.77,0.00026,60]
[338336143,1726510080426,153.33,0.00010959,2]
[338336144,1726510141984,200.0,0.00026,60]
[338336145,1726510164654,29799.999997,0.00026,60]
[338336167,1726510232206,-183.00821368,0.00013519,2]
[338336168,1726510232216,-250.0,0.00013535,2]
[338336169,1726510232226,-142.97511631,0.00013541,2]
[338336170,1726510232237,-62.76488369,0.00013541,2]
[338336171,1726510232246,-250.0,0.00013614,2]
[338336172,1726510232256,-269.64511631,0.00013633,2]
[338336173,1726510232267,-730.35488369,0.00013633,2]
[338336174,1726510232276,-174.37,0.00013633,2]
[338336175,1726510232285,-1500.0,0.00013648,2]
[338336176,1726510232295,-115.22952808,0.00013699,2]
[338336177,1726510232306,-34.78047192,0.00013699,2]
[338336178,1726510232315,-171.04,0.00013706,2]
[338336179,1726510232325,-514.9049,0.000139,2]
[338336180,1726510232334,-499.99,0.000139,2]
[338336181,1726510232343,-700.0,0.000139,5]
[338336182,1726510232352,-211.55,0.00013955,2]
[338336183,1726510232361,-2336.77,0.00013955,2]
[338336184,1726510232371,-297.76,0.00013955,2]
[338336185,1726510232380,-150.99,0.00014,2]
[338336186,1726510232390,-409.01,0.00014,2]
[338336187,1726510232399,-174.28,0.00014,2]
[338336188,1726510232408,-1500.0,0.00014,5]
[338336189,1726510232418,-2216.94258126,0.00014081,2]
[338336190,1726510232427,-752.99,0.000141,2]
[338336191,1726510232437,-184.71,0.000141,2]
[338336192,1726510232446,-422.02,0.000141,2]
[338336193,1726510232460,-752.99,0.000141,2]
[338336194,1726510232470,-752.03,0.000141,2]
[338336195,1726510232479,-2200.0,0.000141,5]
[338336196,1726510232488,-150.0,0.00014191,2]
[338336197,1726510232499,-427.94,0.00014192,2]
[338336198,1726510232508,-150.0,0.00014192,2]
[338336199,1726510232517,-150.0,0.00014192,2]
[338336200,1726510232527,-150.0,0.00014192,2]
[338336201,1726510232536,-251.02,0.00014192,2]
[338336202,1726510232546,-427.94,0.00014192,2]
[338336203,1726510232555,-56.89240837,0.00014192,2]
[338336204,1726510232567,-93.10759163,0.00014192,2]
[338336205,1726510232577,-150.0,0.00014192,2]
[338336206,1726510232586,-150.0,0.00014192,2]
[338336207,1726510232595,-150.0,0.00014192,2]
[338336208,1726510232605,-150.0,0.00014192,2]
[338336209,1726510232615,-426.04,0.00014192,2]
[338336210,1726510232624,-150.0,0.00014192,2]
[338336211,1726510232633,-150.0,0.00014192,2]
[338336213,1726510232643,-150.0,0.00014192,2]
[338336215,1726510232652,-150.0,0.00014192,2]
[338336217,1726510232661,-422.56,0.000142,2]
[338336219,1726510232670,-752.99,0.000142,2]
[338336220,1726510232680,-427.94,0.000142,2]
[338336222,1726510232689,-357.82,0.000142,2]
[338336224,1726510232698,-150.0,0.000142,2]
[338336226,1726510232708,-150.0,0.000142,2]
[338336228,1726510232717,-150.0,0.000142,2]
[338336230,1726510232727,-752.99,0.000142,2]
[338336231,1726510232736,-427.94,0.000142,2]
[338336233,1726510232745,-150.0,0.000142,2]
[338336235,1726510232755,-150.0,0.000142,2]
[338336237,1726510232764,-150.0,0.000142,2]
[338336239,1726510232774,-752.99,0.000142,2]
[338336241,1726510232784,-357.82,0.000142,2]
[338336243,1726510232793,-150.0,0.000142,2]
[338336245,1726510232802,-422.56,0.000142,2]
[338336247,1726510232811,-1810.37698562,0.000142,5]
[338336249,1726510232823,-292.93978369,0.000142,5]
[338336278,1726510238251,-668.52975339,0.000142,5]
[338336279,1726510238273,-228.1534773,0.000142,5]
[338336280,1726510238282,-3700.0,0.000143,5]
[338336281,1726510238291,-700.0,0.000144,5]
[338336282,1726510238301,-700.0,0.000145,5]
[338336283,1726510238310,-700.0,0.000146,5]
[338336284,1726510238319,-557.82,0.000147,2]
[338336285,1726510238329,-700.0,0.000147,5]
[338336286,1726510238338,-500.0,0.00014791,2]
[338336287,1726510238347,-357.69,0.00014791,2]
[338336288,1726510238356,-155.242,0.00014791,2]
[338336289,1726510238366,-8500.0,0.00014794,2]
[338336290,1726510238375,-195.38172942,0.00014794,2]
[338336291,1726510238384,-324.00256234,0.000148,2]
[338336292,1726510238606,-2675.99743766,0.000148,2]
[338336293,1726510238615,-1284.0,0.000148,5]
[338336294,1726510238625,-150.0,0.00014802,2]
[338336295,1726510238634,-150.0,0.00014802,2]
[338336296,1726510238643,-624.0,0.00014802,2]
[338336297,1726510238653,-1543.0,0.00014802,2]
[338336298,1726510238662,-554.0,0.00014802,2]
[338336299,1726510238672,-553.0,0.00014802,2]
[338336300,1726510238681,-1902.0,0.00014802,2]
[338336301,1726510238691,-806.0,0.00014802,2]
[338336302,1726510238700,-248.0,0.00014802,2]
[338336303,1726510238710,-3345.0,0.00014802,2]
[338336305,1726510238720,-1917.0,0.00014802,2]
[338336307,1726510238729,-824.0,0.0001485,2]
[338336309,1726510238738,-423.0,0.00014899,2]
[338336311,1726510238748,-1461.24994856,0.00014899,2]
[338336313,1726510238758,-1461.24994847,0.00014899,2]
[338336315,1726510238767,-1461.24994847,0.00014899,2]
[338336317,1726510238777,-1461.24994847,0.00014899,2]
[338336319,1726510238787,-1461.24994847,0.00014899,2]
[338336320,1726510238797,-1461.24994847,0.000149,2]
[338336322,1726510238806,-1461.24994847,0.000149,2]
[338336324,1726510238816,-1461.24994847,0.000149,2]
[338336326,1726510238826,-1461.24994847,0.000149,2]
[338336328,1726510238835,-1461.24994847,0.000149,2]
[338336330,1726510238844,-154.62,0.000149,31]
[338336332,1726510238853,-154.62,0.000149,31]
[338336334,1726510238863,-154.62,0.000149,31]
[338336336,1726510238874,-154.62,0.000149,31]
[338336338,1726510238883,-154.62,0.000149,31]
[338336340,1726510238893,-154.62,0.000149,31]
[338336342,1726510238902,-154.62,0.000149,31]
[338336344,1726510238912,-732.24578742,0.000149,2]
[338336346,1726510238921,-153.89,0.0001499,2]
[338336348,1726510238931,-153.89,0.0001499,2]
[338336350,1726510238941,-153.89,0.0001499,2]
[338336352,1726510238950,-153.89,0.0001499,2]
[338336354,1726510238959,-153.89,0.0001499,2]
[338336356,1726510238969,-502.42571933,0.00014999,2]
[338336358,1726510238979,-12425.53539681,0.00015,2]
[338336374,1726510239127,-2063.8724,0.00015,2]
[338336446,1726510240297,-5820.1,0.00015,2]
[338336447,1726510240567,-632.00128684,0.00015,2]
[338336448,1726510240579,-2323.0376055,0.00015,2]
[338336449,1726510240605,-1128.25200002,0.00015,2]
[338336450,1726510240616,-6017.26552697,0.00015,2]
[338336490,1726510244052,-379738.19506141,0.00015,2]
[338336491,1726510244062,-1715110.72835504,0.00015,2]
[338336492,1726510244073,-388.005,0.00015,2]
[338336493,1726510244085,-256.424324,0.00015,2]
[338336494,1726510244096,-345837.01662653,0.00015,2]
[338336500,1726510246296,-414.28650528,0.00015,2]
[338336501,1726510246307,-2082.4977933,0.00015,2]
[338336502,1726510246319,-721.62621433,0.00015,2]
[338336503,1726510246419,-1747.59585,0.00015,2]
[338336504,1726510246529,-15223.43119216,0.00015,2]
[338336508,1726510288324,220.94,0.0001197,2]
[338336509,1726510406740,500.0,0.000251,120]
[338336510,1726510407022,500.0,0.000256,120]
[338336511,1726510418407,500.0,0.00025434,120]
[338336512,1726510435659,200.0,0.000246,120]
[338336513,1726510794442,151.55,0.00010959,2]
[338336514,1726510808669,230.34,0.00011802,2]
[338336516,1726511108421,1118723.4611505,0.00013,2]
[338336517,1726511108454,2638932.43021647,0.00013,2]
[338336518,1726511113895,1050.0,0.00011,2]
[338336523,1726511281316,260117.89381332,0.00013,2]
[338336524,1726511281342,499536.99633025,0.00013,2]
[338336546,1726511392612,239.75,0.00011794,2]
[338336561,1726511432349,-325.4079,0.00013388,2]
[338336562,1726511432358,-150.0,0.00013488,2]
[338336563,1726511432368,-150.0,0.00013488,2]
[338336564,1726511432377,-150.0,0.00013488,2]
[338336565,1726511432386,-120.72354154,0.00013488,2]
[338336566,1726511432397,-29.27645846,0.00013488,2]
[338336567,1726511432407,-169.22,0.00013601,2]
[338336568,1726511432416,-156.26,0.00013699,2]
[338336569,1726511432425,-150.0,0.00013737,2]
[338336570,1726511432434,-171.34354154,0.00013746,2]
[338336571,1726511432446,-78.65645846,0.00013746,2]
[338336572,1726511432455,-228.77,0.00013746,2]
[338336573,1726511432464,-200.0,0.00013749,2]
[338336574,1726511432473,-174.06,0.00013802,2]
[338336575,1726511432482,-700.0,0.000139,5]
[338336576,1726511432492,-150.0,0.00013987,2]
[338336577,1726511432501,-150.0,0.00013999,2]
[338336578,1726511432510,-7051.55441911,0.00014,2]
[338336579,1726511432522,-28171.46098157,0.00014,2]
[338336580,1726511432531,-5834.04,0.00014,2]
[338336581,1726511432540,-2351.81,0.00014,2]
[338336582,1726511432550,-189.61,0.00014,2]
[338336583,1726511432559,-7321.37,0.00014,2]
[338336584,1726511432568,-351.01,0.00014,2]
[338336585,1726511432577,-1400.0,0.00014,5]
[338336586,1726511432587,-239.75,0.00014058,2]
[338336587,1726511432596,-2165.38364963,0.00014081,2]
[338336588,1726511432605,-422.56,0.000141,2]
[338336589,1726511432615,-1505.34,0.000141,2]
[338336590,1726511432623,-422.56,0.000141,2]
[338336591,1726511432633,-150.0,0.000141,2]
[338336592,1726511432642,-2100.0,0.000141,5]
[338336593,1726511432651,-150.0,0.00014178,2]
[338336594,1726511432660,-2800.0,0.000142,5]
[338336595,1726511432670,-150.0,0.00014237,2]
[338336596,1726511432679,-150.0,0.00014237,2]
[338336597,1726511432689,-3500.0,0.000143,5]
[338336598,1726511432698,-700.0,0.000144,5]
[338336599,1726511432708,-151.02,0.00014466,2]